bitfinex/quotes_ETHUSD_20240715
["timestamp","ask_amount","ask_price","bid_price","bid_amount"]
[1721006398412,0.0756362,3306.5,3304.0,2.72392]
[1721006398579,2.2583,3306.4,3304.1,0.06030466]
[1721006399608,0.07563623,3306.3,3304.1,0.06030466]
[1721006399828,2.4218,3306.1,3304.0,0.06030473]
[1721006399975,0.32538235,3306.0,3304.0,0.06030473]
[1721006400177,0.24974381,3306.0,3304.1,0.06031027]
[1721006401411,0.24974381,3306.0,3303.7,0.06032471]
[1721006401412,2.4218,3305.8,3303.7,0.06032471]
[1721006401614,2.4218,3305.8,3303.8,0.06032687]
[1721006401837,0.24218,3305.7,3303.7,0.06032687]
[1721006401997,0.24218,3305.7,3303.8,0.06032699]
[1721006402699,0.24218,3305.7,3303.8,2.78445699]
[1721006402901,0.24218,3305.7,3304.2,2.72378]
[1721006403130,0.24218,3305.7,3304.3,0.06028927]
[1721006403301,9.895814,3305.6,3304.0,2.78425698]
[1721006403511,0.266398,3305.6,3304.0,0.06030698]
[1721006403728,9.629416,3305.5,3304.0,0.06030698]
[1721006403929,2.4218,3305.8,3304.2,2.7238]
[1721006404130,2.4218,3305.8,3304.3,0.61028763]
[1721006404351,0.24218,3305.7,3304.3,0.06028763]
[1721006406143,0.24218,3305.7,3304.1,0.55]
[1721006406144,9.629416,3305.6,3304.4,0.06030125]
[1721006406455,9.629416,3305.6,3304.1,3.51030125]
[1721006406630,0.24218,3305.7,3304.1,3.51030125]
[1721006406835,0.24218,3305.7,3303.7,2.7242]
[1721006407062,0.266398,3305.6,3303.8,5.72412]
[1721006407249,0.266398,3305.6,3303.9,2.72397]
[1721006407560,0.266398,3305.6,3304.1,2.72388]
[1721006407919,0.266398,3305.6,3303.8,5.72412]
[1721006408260,0.266398,3305.6,3303.9,1.829]
[1721006408555,2.4218,3305.8,3304.1,1.829]
[1721006408755,2.4218,3305.8,3304.2,0.55]
[1721006408928,9.70505497,3305.7,3304.1,1.829]
[1721006409134,0.07563897,3305.7,3304.1,1.829]
[1721006409515,2.4218,3305.8,3304.1,1.829]
[1721006409834,0.24218,3305.7,3304.1,1.829]
[1721006410031,0.24218,3305.7,3304.0,0.55]
[1721006410032,0.31781903,3305.7,3304.0,0.55]
[1721006410359,0.31781903,3305.7,3303.8,4.829]
[1721006410360,0.4750252,3305.4,3303.8,4.829]
[1721006410530,0.4750252,3305.4,3303.9,0.55]
[1721006410733,12.020516,3305.3,3303.1,7.43]
[1721006410931,1.24955412,3305.2,3303.2,2.72455]
[1721006411243,2.3911,3305.3,3303.2,4.55355]
[1721006411461,5.3911,3305.3,3303.2,4.55355]
[1721006412674,12.023316,3305.2,3303.2,1.829]
[1721006412849,12.629416,3305.1,3303.2,1.829]
[1721006413049,9.629416,3305.0,3303.2,1.829]
[1721006413345,4.2629416,3304.9,3303.0,4.55375]
[1721006413672,2.42336053,3304.8,3302.7,2.72502]
[1721006413875,2.3477,3304.8,3302.7,2.72502]
[1721006414660,2.2855,3304.6,3302.5,7.43]
[1721006414835,2.2855,3304.6,3301.2,3.919]
[1721006414836,2.2855,3304.4,3301.9,7.43]
[1721006415169,1.5,3305.0,3301.7,2.72585]
[1721006415170,2.2855,3304.2,3301.7,2.72585]
[1721006415374,2.2855,3304.2,3301.3,19.59]
[1721006415375,2.2855,3304.0,3301.3,7.43]
[1721006415530,2.2855,3303.8,3301.3,7.43]
[1721006415733,2.2855,3303.8,3301.3,10.15618]
[1721006415966,2.2855,3303.8,3301.4,2.72604]
[1721006416166,2.3024,3303.7,3301.3,7.43]
[1721006416376,2.3780974,3303.7,3301.3,7.43]
[1721006416606,2.4196,3303.5,3301.3,7.43]
[1721006416813,3.0,3303.8,3300.9,2.72652]
[1721006416814,2.4196,3303.3,3300.9,2.72652]
[1721006417001,2.4196,3303.3,3301.1,1.829]
[1721006417201,2.4196,3303.3,3301.5,2.72601]
[1721006417373,2.4196,3303.3,3302.1,2.72547]
[1721006417698,3.06,3305.0,3301.9,2.7257]
[1721006417699,2.4568,3304.0,3303.1,2.72464]
[1721006417900,2.4568,3304.0,3303.2,2.72461]
[1721006418119,9.629416,3303.9,3302.9,2.72487]
[1721006418408,2.4568,3304.0,3303.0,0.55]
[1721006418571,2.4568,3304.0,3303.0,2.72479]
[1721006418772,2.4568,3304.0,3303.3,2.72454]
[1721006418988,2.4568,3304.0,3302.9,0.55]
[1721006418989,2.4497,3305.3,3303.7,2.7242]
[1721006419189,2.4497,3305.1,3302.9,0.55]
[1721006419428,2.52535853,3305.1,3302.9,0.55]
[1721006419635,2.4497,3305.1,3303.0,2.72472]
[1721006419784,2.4497,3305.1,3303.1,2.7247]
[1721006420122,0.27421725,3305.0,3303.3,2.72454]
[1721006420303,0.27421725,3305.0,3303.2,0.55]
[1721006420623,2.4155,3304.8,3302.5,3.0]
[1721006420820,2.4155,3304.8,3301.9,3.615]
[1721006420821,2.4155,3304.8,3303.0,2.72474]
[1721006421173,2.4155,3304.8,3303.1,2.7247]
[1721006421399,2.98447173,3304.8,3303.3,2.72452]
[1721006422111,9.629416,3304.7,3303.1,2.7247]
[1721006422333,2.98447173,3304.8,3302.9,2.72486]
[1721006422478,0.07566548,3304.7,3303.0,0.55]
[1721006422677,0.07566548,3304.7,3302.9,2.72486]
[1721006422919,0.30601372,3304.6,3303.0,0.55]
[1721006423100,2.3391,3304.4,3302.5,2.72519]
[1721006423313,2.3391,3304.4,3302.6,5.72511]
[1721006423680,2.3391,3304.4,3302.7,2.72503]
[1721006424279,2.3391,3304.4,3302.8,2.72491]
[1721006424479,0.23391,3304.3,3303.0,2.72478]
[1721006425510,0.31713231,3304.2,3303.0,2.72478]
[1721006426300,0.31713231,3304.2,3302.6,3.0]
[1721006426539,11.98568925,3304.1,3302.3,2.72536]
[1721006426738,11.98568925,3304.1,3301.9,7.43]
[1721006426739,2.35627325,3304.1,3301.9,7.43]
[1721006426923,2.2806,3303.9,3301.9,7.43]
[1721006427106,2.2806,3303.7,3301.2,2.72628]
[1721006427307,2.2806,3303.7,3301.0,2.72643]
[1721006427308,0.085,3301.9,3301.0,2.72642]
[1721006427552,2.2806,3302.2,3301.0,2.72642]
[1721006427842,2.2806,3302.2,3301.4,2.72609]
[1721006428037,2.2806,3302.2,3300.2,25.93209]
[1721006428038,2.2806,3302.2,3301.2,2.72626]
[1721006428225,2.2806,3302.2,3301.1,2.72635]
[1721006428426,2.4805,3303.5,3302.6,2.72508]
[1721006428805,2.4805,3303.5,3301.8,11.045]
[1721006429025,2.4805,3303.5,3302.7,2.72496]
[1721006429241,2.4805,3303.5,3302.5,2.72519]
[1721006429537,2.4805,3303.5,3302.8,2.72495]
[1721006430037,2.4805,3303.5,3302.9,2.72487]
[1721006430243,2.4805,3303.5,3301.9,3.0]
[1721006430244,2.4805,3303.5,3302.3,2.72532]
[1721006430441,2.72855,3303.5,3302.0,2.72556]
[1721006430603,2.72855,3303.5,3301.9,5.7257]
[1721006430804,2.4805,3303.5,3302.4,2.72528]
[1721006430999,2.4805,3303.5,3302.6,2.72511]
[1721006431204,2.4805,3303.5,3302.7,2.72502]
[1721006431636,2.4805,3303.5,3302.9,2.72486]
[1721006432312,2.4805,3303.5,3302.3,3.0]
[1721006432550,2.4805,3303.5,3302.3,2.72537]
[1721006432717,2.4805,3303.5,3302.4,5.72528]
[1721006432913,2.4805,3303.5,3302.5,2.72514]
[1721006433137,2.4805,3303.5,3302.5,5.72514]
[1721006433346,2.4805,3303.5,3302.5,3.0]
[1721006433513,2.4805,3303.5,3302.8,2.72493]
[1721006433856,2.4805,3303.5,3302.6,2.72504]
[1721006434011,2.4805,3303.5,3302.8,2.72493]
[1721006434522,2.4805,3303.5,3302.9,2.72486]
[1721006434726,2.4805,3303.5,3303.0,2.72472]
[1721006434917,2.4805,3303.5,3302.7,0.55]
[1721006435111,2.4805,3303.5,3302.8,2.72495]
[1721006435315,2.4805,3303.5,3302.7,3.27504]
[1721006435519,2.4805,3303.5,3302.7,0.55]
[1721006435823,2.4805,3303.5,3302.5,2.7252]
[1721006436452,2.4805,3303.5,3302.6,2.7251]
[1721006436610,2.4805,3303.5,3302.7,2.72501]
[1721006436938,2.4805,3303.5,3302.9,2.72487]
[1721006437134,4.576148,3303.4,3302.8,2.72495]
[1721006437356,2.4805,3303.5,3302.8,2.72495]
[1721006437513,2.4805,3303.5,3302.3,1.821]
[1721006437514,5.297124,3303.4,3302.6,2.72512]
[1721006437853,2.4805,3303.5,3302.6,2.72512]
[1721006438025,2.4805,3303.5,3302.7,2.72501]
[1721006438223,2.4805,3303.5,3302.8,2.7249]
[1721006438623,2.4805,3303.5,3302.9,2.72487]
[1721006439226,2.4805,3303.5,3303.0,2.72478]
[1721006439420,3.437658,3303.4,3303.0,2.72478]
[1721006439925,3.437658,3303.4,3302.7,2.72503]
[1721006440269,10.29691161,3303.4,3301.9,2.7257]
[1721006440547,0.5918158,3303.4,3302.0,2.72558]
[1721006440747,9.70511207,3303.3,3301.8,2.72572]
[1721006440961,0.07569619,3303.2,3301.8,2.72572]
[1721006441128,11.988916,3303.1,3301.5,2.72596]
[1721006441456,2.3595,3303.1,3301.5,2.72596]
[1721006441828,2.4715,3303.8,3302.9,2.72481]
[1721006442150,2.4715,3303.8,3303.1,2.72469]
[1721006442339,9.557016,3303.7,3303.1,2.72469]
[1721006442536,9.557016,3303.7,3302.9,2.72481]
[1721006442729,2.4715,3303.8,3302.9,2.72481]
[1721006442927,9.876566,3303.7,3302.2,3.597]
[1721006443228,0.07568655,3303.6,3302.2,6.32243]
[1721006443430,2.4685,3303.5,3302.1,10.15553]
[1721006443645,2.4685,3303.5,3302.2,0.55]
[1721006443840,9.629416,3303.4,3302.2,0.55]
[1721006444054,1.2097916,3303.3,3302.2,0.55]
[1721006444224,9.629416,3303.2,3302.2,0.55]
[1721006444425,9.629416,3303.2,3301.8,2.72576]
[1721006444730,9.629416,3303.2,3301.6,12.16]
[1721006444731,2.4983,3303.1,3301.6,12.16]
[1721006445059,2.4983,3302.9,3301.4,7.43]
[1721006445371,3.0,3303.1,3300.4,12.16]
[1721006445372,2.4983,3302.7,3300.6,10.15676]
[1721006445574,5.4983,3302.7,3300.7,2.72669]
[1721006445780,2.4983,3302.7,3301.0,2.72643]
[1721006445934,0.24983,3302.6,3301.0,2.72643]
[1721006446129,0.24983,3302.6,3300.9,3.597]
[1721006446354,2.3692,3302.4,3300.6,2.72676]
[1721006446533,2.3692,3302.2,3300.6,2.72676]
[1721006446734,2.3692,3302.2,3300.8,2.72655]
[1721006446929,2.60612,3302.2,3300.9,2.72652]
[1721006447480,2.3692,3302.2,3301.2,2.72627]
[1721006447656,2.3692,3302.2,3301.5,2.72603]
[1721006447970,2.3692,3302.2,3301.9,2.72565]
[1721006448285,2.3692,3302.2,3301.8,2.72576]
[1721006448579,3.07570543,3303.6,3301.9,2.7257]
[1721006448580,2.4111,3303.5,3301.9,2.7257]
[1721006448738,2.4111,3303.5,3301.1,2.72629]
[1721006448739,2.4775,3303.3,3301.7,2.72582]
[1721006448936,5.4775,3303.3,3301.8,0.55]
[1721006449133,9.629416,3303.2,3301.8,0.55]
[1721006449348,9.629416,3303.2,3301.3,7.43]
[1721006449349,2.4775,3303.0,3301.3,7.43]
[1721006449573,3.07570072,3303.1,3301.3,7.43]
[1721006449574,2.4775,3302.8,3301.3,7.43]
[1721006449783,2.4775,3302.6,3301.1,2.72636]
[1721006449977,0.07571408,3302.5,3300.9,2.72648]
[1721006450337,2.4775,3302.6,3300.9,2.72648]
[1721006450665,2.4775,3302.6,3301.1,2.72635]
[1721006450874,9.70513032,3302.5,3300.9,2.72648]
[1721006451172,2.3728,3302.3,3300.7,13.15668]
[1721006451379,2.3728,3302.3,3300.7,10.15668]
[1721006452131,2.3728,3302.3,3300.9,2.72646]
[1721006452573,9.629416,3302.2,3300.9,2.72646]
[1721006452752,2.3728,3302.3,3300.9,2.72646]
[1721006452955,0.23728,3302.2,3300.9,2.72646]
[1721006453151,9.629416,3302.1,3300.9,2.72646]
[1721006453542,0.23728,3302.2,3300.9,2.72646]
[1721006453779,9.629416,3302.1,3300.9,2.72646]
[1721006453977,0.23728,3302.2,3300.9,2.72646]
[1721006454289,0.261008,3302.1,3300.9,2.72646]
[1721006454592,2.3728,3302.3,3300.9,2.72646]
[1721006454761,2.3728,3302.3,3301.1,2.72629]
[1721006455443,9.629416,3302.2,3301.1,2.72629]
[1721006456090,9.629416,3302.2,3300.9,2.72646]
[1721006456377,0.07572301,3302.1,3300.7,7.43]
[1721006456603,1.27594461,3302.1,3300.7,7.43]
[1721006456789,0.07572301,3302.1,3300.7,7.43]
[1721006457575,0.07572301,3302.1,3300.7,10.15668]
[1721006457879,2.3728,3302.3,3300.7,10.15668]
[1721006458379,0.07572594,3302.2,3300.7,10.15668]
[1721006458766,2.3728,3302.3,3300.7,2.72668]
[1721006458971,0.23728,3302.2,3300.7,2.72668]
[1721006459156,0.23728,3302.2,3300.8,0.55]
[1721006459356,3.23728,3302.2,3300.8,0.55]
[1721006459557,0.07572601,3302.1,3300.8,0.55]
[1721006460285,2.3674,3302.0,3300.8,0.55]
[1721006460497,2.3674,3302.0,3300.7,0.55]
[1721006460704,0.07572764,3301.9,3300.5,0.55]
[1721006460998,2.3674,3302.0,3300.6,2.72671]
[1721006461179,0.5691128,3301.9,3300.3,2.72702]
[1721006461372,3.5691128,3301.9,3300.6,2.72677]
[1721006462298,0.47550724,3301.6,3300.8,2.72659]
[1721006462479,0.47550724,3301.6,3300.2,3.625]
[1721006462480,0.47550724,3301.6,3300.4,2.72691]
[1721006462675,0.55124246,3301.6,3300.1,5.72716]
[1721006462880,0.55124246,3301.6,3300.2,2.7271]
[1721006462881,2.3313,3301.5,3300.2,2.7271]
[1721006463193,0.28068072,3301.4,3300.2,2.7271]
[1721006463873,0.28068072,3301.4,3300.0,12.88447]
[1721006464100,0.28068072,3301.4,3300.1,2.72717]
[1721006464283,0.28068072,3301.4,3300.2,0.55]
[1721006464600,0.28068072,3301.4,3300.0,10.15721]
[1721006464601,0.28068072,3301.4,3300.0,7.43]
[1721006464807,0.33694277,3301.3,3300.0,10.15726]
[1721006465116,0.07574467,3301.2,3300.0,10.15726]
[1721006465408,0.26119807,3301.3,3300.1,2.72715]
[1721006465988,0.26119807,3301.3,3300.2,2.72709]
[1721006466164,0.32611981,3301.2,3300.2,2.72709]
[1721006466372,0.32611981,3301.2,3300.3,0.55]
[1721006469383,0.40186226,3301.2,3300.0,2.72726]
[1721006469586,0.40186226,3301.2,3300.1,0.55]
[1721006470199,0.32611981,3301.2,3300.1,0.55]
[1721006470505,2.3313,3301.5,3300.5,2.72685]
[1721006470708,2.3313,3301.5,3300.6,0.55]
[1721006471389,2.3313,3301.5,3300.3,2.72696]
[1721006471708,2.3313,3301.5,3300.4,3.27691]
[1721006471911,0.28068072,3301.4,3300.4,0.55]
[1721006472111,0.28068072,3301.4,3300.3,3.27702]
[1721006472275,3.28068072,3301.4,3300.3,3.27702]
[1721006472477,3.28068072,3301.4,3300.3,0.55]
[1721006472696,0.07574231,3301.3,3300.2,0.55]
[1721006472901,3.28068072,3301.4,3300.2,0.55]
[1721006472902,0.3356423,3301.2,3300.2,0.55]
[1721006474908,0.3356423,3301.2,3300.1,0.55]
[1721006475108,0.41138721,3301.2,3299.8,2.72742]
[1721006475288,0.41138721,3301.2,3299.9,0.55]
[1721006476823,2.2643,3301.1,3299.8,0.55]
[1721006477025,0.34331869,3301.0,3299.8,0.55]
[1721006477404,3.34331869,3301.0,3299.8,0.55]
[1721006478013,3.34331869,3301.0,3299.6,0.55]
[1721006478415,3.34331869,3301.0,3299.5,0.55]
[1721006478804,2.3563,3300.9,3299.2,2.7279]
[1721006479003,0.64572589,3300.8,3299.2,2.7279]
[1721006479317,0.56996187,3300.8,3299.2,2.7279]
[1721006479497,3.56996187,3300.8,3299.2,2.7279]
[1721006480016,3.56996187,3300.8,3299.3,0.55]
[1721006480203,3.56996187,3300.8,3299.5,2.72767]
[1721006480403,0.59262619,3300.7,3299.6,0.55]
[1721006480621,0.59262619,3300.7,3298.8,7.43]
[1721006480939,3.0,3300.8,3299.7,2.72752]
[1721006481102,5.3563,3300.9,3299.8,0.55]
[1721006481899,5.3563,3300.9,3299.6,0.55]
[1721006482130,5.3563,3300.9,3299.6,3.27755]
[1721006482703,5.3563,3300.9,3299.6,0.55]
[1721006482912,5.91868687,3300.9,3299.8,2.72743]
[1721006483109,5.91868687,3300.9,3299.9,0.55]
[1721006483110,2.3563,3300.9,3299.9,0.55]
[1721006483315,2.3563,3300.9,3300.3,2.72699]
[1721006483516,2.3563,3300.9,3300.4,0.55]
[1721006484022,2.3563,3300.9,3300.3,2.72697]
[1721006484237,2.3563,3300.9,3300.4,0.55]
[1721006484637,2.3563,3300.9,3300.4,3.27692]
[1721006485251,0.07573797,3302.2,3300.4,3.27692]
[1721006485252,2.2582,3301.5,3300.5,2.72685]
[1721006485554,2.53157072,3301.5,3300.6,0.55]
[1721006485772,1.5,3302.7,3300.6,0.55]
[1721006485773,2.2653,3302.1,3300.6,0.55]
[1721006485920,2.2653,3302.1,3301.5,5.45206]
[1721006486116,2.2653,3302.1,3301.5,6.00206]
[1721006486950,3.604,3303.5,3301.5,8.72809]
[1721006486951,2.2653,3302.9,3301.5,8.72809]
[1721006487153,2.2653,3303.9,3302.3,2.72529]
[1721006487351,0.47530133,3302.9,3302.7,2.72496]
[1721006487675,0.47530133,3302.9,3302.4,0.55]
[1721006487676,0.47530133,3302.9,3302.8,5.9999]
[1721006487821,2.2653,3303.9,3303.1,2.72464]
[1721006488156,2.2653,3303.9,3303.2,0.55]
[1721006488381,0.47518527,3303.8,3303.5,2.72436]
[1721006488668,2.4317,3304.4,3303.7,2.72421]
[1721006488818,2.4317,3304.4,3303.2,0.55]
[1721006488819,0.07566469,3304.3,3303.2,0.55]
[1721006489023,0.47509555,3303.8,3303.1,0.55]
[1721006489924,0.47509555,3303.8,3301.4,0.14696441]
[1721006489925,0.07567985,3303.7,3302.8,0.55]
[1721006490219,0.47509555,3303.8,3302.8,0.55]
[1721006490455,0.47509555,3303.8,3302.9,2.72485]
[1721006490654,0.47509555,3303.8,3303.0,0.55]
[1721006490839,0.47509555,3303.8,3303.3,2.72451]
[1721006491039,0.47509555,3303.8,3303.4,0.55]
[1721006491699,0.47509555,3303.8,3303.7,5.44842]
[1721006491865,2.395,3305.2,3303.9,2.72401]
[1721006492066,0.47505302,3304.0,3303.4,0.55]
[1721006492287,0.31515932,3305.1,3303.2,3.27459]
[1721006492288,2.2738,3304.3,3303.2,3.27459]
[1721006492677,0.47511284,3303.9,3303.2,0.55]
[1721006492850,0.47511284,3303.9,3303.0,0.55]
[1721006493041,2.4425,3304.7,3303.7,2.72418]
[1721006493247,2.68675,3304.7,3303.8,0.55]
[1721006493551,0.4750723,3304.1,3303.8,3.2741]
[1721006493757,2.68675,3304.7,3303.8,3.2741]
[1721006493977,0.47506217,3304.1,3303.3,2.72447]
[1721006494139,0.47506217,3304.1,3303.4,3.27439]
[1721006494343,2.68675,3304.7,3303.5,2.72431]
[1721006494586,0.4750783,3304.0,3303.6,3.27428]
[1721006494803,0.4750783,3304.0,3303.6,0.55]
[1721006494981,0.07566689,3304.4,3303.3,0.55]
[1721006495281,3.268675,3304.6,3302.3,8.15031]
[1721006495282,0.4751179,3304.5,3302.3,8.15031]
[1721006495480,3.4751179,3304.5,3302.7,2.72503]
[1721006495781,0.4751179,3304.5,3303.9,2.72398]
[1721006495992,0.4751179,3304.5,3304.1,2.72386]
[1721006496481,0.4751179,3304.5,3304.2,0.55]
[1721006496697,0.4751179,3304.5,3304.2,3.27373]
[1721006496854,0.4751179,3304.5,3304.2,0.55]
[1721006497058,0.4751179,3304.5,3304.1,0.55]
[1721006497548,0.4751179,3304.5,3304.1,2.72382]
[1721006497748,0.4751179,3304.5,3304.2,0.55]
[1721006497989,0.4751179,3304.5,3301.7,0.62055124]
[1721006498199,2.4924655,3304.4,3302.3,2.72531]
[1721006498400,0.29675834,3304.3,3302.6,2.72512]
[1721006498575,0.07568454,3304.2,3302.6,2.72512]
[1721006498919,0.07568454,3304.2,3302.4,2.72528]
[1721006498920,2.4763,3304.0,3302.4,2.72528]
[1721006499104,2.55198868,3304.0,3302.5,2.72513]
[1721006499423,2.4763,3304.0,3302.6,2.72512]
[1721006499579,3.24763,3303.9,3302.5,2.7252]
[1721006499772,3.24763,3303.9,3302.2,2.72542]
[1721006499973,3.24763,3303.9,3302.1,2.72553]
[1721006500207,3.24763,3303.9,3302.6,2.72504]
[1721006500708,3.24763,3303.9,3302.4,2.72527]
[1721006500915,0.572393,3303.8,3302.4,2.72527]
[1721006501116,0.572393,3303.8,3302.4,2.72522]
[1721006501300,0.572393,3303.8,3301.8,2.4158]
[1721006501609,0.572393,3303.8,3302.1,2.72552]
[1721006501828,2.4243,3303.7,3300.6,0.15155513]
[1721006502030,2.4243,3303.7,3300.0,3.08210264]
[1721006502031,2.4243,3302.9,3301.0,2.72638]
[1721006502174,2.4243,3302.9,3301.4,2.72604]
[1721006502374,5.50000769,3302.9,3300.3,3.604]
[1721006502578,5.50000769,3302.9,3301.0,2.72636]
[1721006502802,5.4243,3302.9,3301.1,2.7263]
[1721006503004,5.4243,3302.9,3301.0,2.7264]
[1721006503005,0.90283,3302.8,3301.0,2.7264]
[1721006503222,3.97854488,3302.8,3301.1,2.72636]
[1721006504085,3.97854488,3302.8,3300.8,2.72661]
[1721006504086,2.3919,3302.4,3300.8,2.72661]
[1721006504290,0.07571926,3302.3,3300.8,2.72661]
[1721006504636,5.3919,3302.4,3300.7,2.72668]
[1721006504782,0.89959,3302.3,3300.7,2.72668]
[1721006504981,3.89959,3302.3,3300.9,2.7265]
[1721006505318,3.89959,3302.3,3300.7,2.72668]
[1721006505480,3.89959,3302.3,3300.8,3.0]
[1721006505878,3.89959,3302.3,3300.8,5.7266]
[1721006506085,3.89959,3302.3,3301.1,2.72633]
[1721006506318,0.704867,3302.2,3300.8,3.0]
[1721006506610,2.3919,3300.8,3297.6,2.2885]
[1721006506915,0.3173,3299.6,3299.2,2.72786]
[1721006507213,0.3173,3299.6,3297.6,5.8925]
[1721006507214,0.07575965,3300.7,3298.2,7.43]
[1721006507516,3.604,3300.3,3298.7,2.72828]
[1721006507725,0.54676596,3300.6,3298.8,2.72825]
[1721006507726,3.604,3299.8,3298.8,2.72825]
[1721006508320,3.604,3299.8,3299.1,2.728]
[1721006508482,3.604,3299.8,3298.8,2.72821]
[1721006508928,3.604,3299.8,3299.1,2.728]
[1721006509077,2.3919,3300.2,3299.4,2.72775]
[1721006509517,3.604,3299.5,3296.7,2.12084342]
[1721006509718,3.604,3299.5,3297.4,2.2885]
[1721006509922,3.604,3299.5,3298.4,2.72851]
[1721006510424,8.9959,3300.0,3298.8,2.72825]
[1721006510727,0.07577154,3299.9,3298.4,2.72851]
[1721006510909,3.604,3299.5,3298.2,2.72874]
[1721006511700,3.604,3299.5,3297.9,2.72897]
[1721006511701,0.07578452,3299.4,3297.9,2.72897]
[1721006511905,0.07578452,3299.4,3296.4,2.73017]
[1721006511906,3.604,3298.2,3297.0,2.72975]
[1721006512106,2.3741,3298.9,3297.3,2.72949]
[1721006512107,3.604,3298.7,3297.3,2.72949]
[1721006512312,3.604,3298.7,3296.5,2.73009]
[1721006512313,2.3741,3298.9,3296.5,2.73015]
[1721006512514,0.23741,3298.8,3297.3,2.72942]
[1721006512825,0.23741,3298.8,3297.6,2.72921]
[1721006513121,3.23741,3298.8,3297.6,2.72921]
[1721006513416,3.23741,3298.8,3297.3,2.72942]
[1721006513596,3.23741,3298.8,3297.4,0.55]
[1721006513808,0.561151,3298.7,3297.5,2.72926]
[1721006514021,0.561151,3298.7,3297.3,2.72942]
[1721006514022,0.075804,3298.6,3297.3,2.72942]
[1721006514250,0.561151,3298.7,3297.4,2.72941]
[1721006514790,0.561151,3298.7,3297.6,2.72925]
[1721006515007,0.3798561,3298.6,3297.4,2.72941]
[1721006515490,0.3798561,3298.6,3297.5,0.55]
[1721006515892,0.561151,3298.7,3297.5,0.55]
[1721006516120,3.0,3298.8,3297.8,2.72908]
[1721006516305,2.3741,3298.9,3297.9,0.55]
[1721006516883,2.3741,3298.9,3298.5,2.7285]
[1721006517092,2.3741,3298.9,3297.5,7.43]
[1721006517391,2.3741,3298.9,3297.9,2.72898]
[1721006517695,2.2519,3299.6,3298.3,2.72866]
[1721006517896,0.58559,3299.5,3298.3,2.72866]
[1721006518127,3.58559,3299.5,3298.3,2.72866]
[1721006518425,3.58559,3299.5,3297.4,8.10571]
[1721006518426,0.07577892,3299.4,3298.2,2.72869]
[1721006518727,0.07577892,3299.4,3298.3,3.27866]
[1721006518914,0.07577892,3299.4,3298.3,0.55]
[1721006519115,0.36613689,3299.3,3298.2,2.72875]
[1721006519439,0.36613689,3299.3,3298.3,3.27866]
[1721006519724,2.2519,3299.6,3298.7,2.72826]
[1721006519916,2.2519,3299.6,3298.8,0.55]
[1721006520728,2.2519,3299.6,3298.8,3.27825]
[1721006521601,2.3083,3300.9,3299.7,2.72744]
[1721006521815,2.3083,3300.9,3299.8,0.55]
[1721006522134,0.6669804,3300.8,3299.8,0.55]
[1721006522289,0.6669804,3300.8,3299.5,0.55]
[1721006522290,0.07575821,3300.7,3299.5,0.55]
[1721006522615,0.07575821,3300.7,3298.9,7.43]
[1721006522616,2.2575,3300.4,3298.9,7.43]
[1721006522930,2.2575,3300.4,3298.0,2.4839]
[1721006522931,2.2575,3300.4,3298.4,2.72853]
[1721006523132,2.2575,3300.4,3299.6,2.7276]
[1721006523432,2.2575,3300.4,3299.7,3.27744]
[1721006523618,2.2575,3300.4,3299.7,3.2775]
[1721006523829,3.604,3301.0,3300.0,2.72725]
[1721006524003,2.3794,3300.9,3300.1,0.55]
[1721006524702,2.3794,3300.9,3300.0,0.55]
[1721006525187,2.3794,3300.9,3300.2,2.7271]
[1721006525391,2.3794,3300.9,3300.3,0.55]
[1721006526010,2.3794,3300.9,3300.2,2.72709]
[1721006526206,2.3794,3300.9,3300.3,3.27701]
[1721006526397,2.3794,3300.9,3300.3,2.72701]
[1721006526596,2.3794,3300.9,3300.4,0.55]
[1721006527090,2.3794,3300.9,3300.2,3.27703]
[1721006527289,2.3794,3300.9,3300.3,2.72701]
[1721006527489,2.3794,3300.9,3300.4,0.55]
[1721006528096,2.3794,3300.9,3300.3,0.55]
[1721006528438,2.3794,3300.9,3300.5,2.72685]
[1721006528603,2.3256,3301.5,3300.7,2.72668]
[1721006528805,2.3256,3301.5,3300.9,2.72652]
[1721006529003,2.3256,3301.5,3301.0,0.55]
[1721006529240,2.55816,3301.5,3300.2,10.15704]
[1721006529465,2.55816,3301.5,3300.3,0.55]
[1721006529627,2.55816,3301.5,3300.3,3.277]
[1721006529807,2.55816,3301.5,3300.6,2.72675]
[1721006530007,0.0757349,3301.4,3300.4,2.72693]
[1721006530252,0.26338949,3301.3,3300.1,2.72712]
[1721006530452,0.07574395,3301.2,3300.2,2.7271]
[1721006530809,0.07574395,3301.2,3300.0,2.72726]
[1721006531012,0.07574395,3301.2,3299.8,2.72743]
[1721006531314,0.26338949,3301.3,3300.1,2.72718]
[1721006531539,0.32633895,3301.2,3300.2,2.7271]
[1721006531958,0.32633895,3301.2,3300.3,2.72701]
[1721006532452,0.40207676,3301.2,3300.4,0.55]
[1721006532642,0.40207676,3301.2,3299.4,10.15771]
[1721006532643,0.40207676,3301.2,3300.2,0.55]
[1721006532838,0.40207676,3301.2,3300.0,3.27724]
[1721006534252,2.2861,3301.1,3300.0,3.27724]
[1721006534427,0.34457179,3301.0,3299.7,2.72747]
[1721006534632,0.26881768,3301.0,3300.0,2.72726]
[1721006535258,0.26881768,3301.0,3300.1,2.72717]
[1721006535421,0.26881768,3301.0,3300.2,2.7271]
[1721006535621,0.26881768,3301.0,3300.3,0.55]